Cogmind - Beta 14 @@@ ROGUE MODE // 2024.11.12 @ 07:14:43 Player: Serule Result: Destroyed by P-80 Master with Gamma Rifle Performance ------------- Evolutions (8) 4000 Regions Visited (17) 3400 Robots Destroyed (65) 325 Value Destroyed (1727) 1727 Prototype IDs (5) 100 Alien Tech Used (0) 0 Bonus (884) 884 TOTAL SCORE: 10436 Bonus ------- High Alert Combat Kills 140 Follower Combat Kills 794 Friendly Fire -50 Cogmind --------- Core Integrity 0/1450 Matter 300/300 Energy 99/100 System Corruption 1% Temperature Cool (0) Movement Core (50) Location -2/Research Parts ------- > --- POWER (2) -------- (None) > --- PROPULSION (6) --- (None) > --- UTILITY (13) ----- Advanced Visual Processing Unit > --- WEAPON (2) ------- (None) > --- INVENTORY (5) ---- (None) Peak State ------------ > --- POWER ------------ Backup Power III > --- PROPULSION ------- Xenon Bombardment Thruster Improved Surge Thruster Cooled Field Propulsion Drive Impulse Thruster Array > --- UTILITY ---------- Compact Battery Advanced Visual Processing Unit Improved Sensor Array Advanced Sensor Array Improved Signal Interpreter Advanced Signal Interpreter Improved Transmission Jammer Layered Light Armor Plating Layered Medium Armor Plating Graphene Brace System Shield Improved Corruption Screen > --- WEAPON ----------- Backup Laser III > --- INVENTORY -------- Impulse Thruster Impulse Thruster Cooled Field Propulsion Drive Compact Battery High-capacity Matter Pod [Rating: 94] Favorites ----------- Power Backup Power III Engine Backup Power III Power Core Light Nuclear Core Propulsion Aluminum Leg Leg Aluminum Leg Hover Unit Airjet Flight Unit VTOL Module Utility Signal Interpreter Device ECM Suite Storage Medium Storage Unit Processor Signal Interpreter Hackware System Shield Protection Layered Light Armor Plating Weapon Backup Laser III Energy Gun Backup Laser III Energy Cannon Heavy Particle Cannon Ballistic Gun Assault Rifle Ballistic Cannon Improved Light Cannon Launcher Rocket Launcher Special Melee Weapon Improved Datajack Build | -11 -10 -10 -9 -8 -8 -7 -6 -6 -6 -6 -6 -5 -5 -5 -4 -3 -2 ------- Run | Yrd Mat Min Mat Mat Sto Fac Fac Was Fac Low Low Fac Ext Cet Fac Res Res Slots Evolved 16 | . . . 2 2 . 2 2 . . . . 2 . . 2 2 2 Power 1 | . . . . . . . 1 . . . . . . . . . . Propulsion 4 | . . . 1 . . 1 . . . . . 1 . . . . 1 Utility 11 | . . . 1 2 . 1 1 . . . . 1 . . 2 2 1 Weapon . | . . . . . . . . . . . . . . . . . . Parts Attached 106 | 9 7 4 10 11 9 2 10 4 9 . . 6 2 2 8 6 7 Power 14 | 2 1 . 2 1 . 1 2 . 2 . . 1 . . 1 . 1 Engine 13 | 2 1 . 2 . . 1 2 . 2 . . 1 . . 1 . 1 Core 1 | . . . . 1 . . . . . . . . . . . . . Reactor . | . . . . . . . . . . . . . . . . . . Propulsion 33 | 2 . 1 3 4 5 1 2 1 4 . . 1 . . 4 2 3 Treads . | . . . . . . . . . . . . . . . . . . Leg 8 | 2 . 1 3 2 . . . . . . . . . . . . . Wheel . | . . . . . . . . . . . . . . . . . . Hover 1 | . . . . . . . . . 1 . . . . . . . . Flight 24 | . . . . 2 5 1 2 1 3 . . 1 . . 4 2 3 Utility 36 | 2 2 . 2 3 2 . 4 1 3 . . 4 2 2 2 4 3 Device 11 | 1 . . . 1 1 . 1 . . . . 1 . 1 2 2 1 Storage 7 | 1 1 . 1 . . . . . 1 . . 1 . . . . 2 Processor 5 | . 1 . . 1 . . . . . . . 1 . . . 2 . Hackware 2 | . . . . . . . . . 2 . . . . . . . . Protection 11 | . . . 1 1 1 . 3 1 . . . 1 2 1 . . . Artifact . | . . . . . . . . . . . . . . . . . . Weapon 23 | 3 4 3 3 3 2 . 2 2 . . . . . . 1 . . Energy Gun 3 | 1 . . . . . . . 1 . . . . . . 1 . . Energy Cannon 5 | . . 1 1 2 1 . . . . . . . . . . . . Ballistic Gun 6 | 2 2 1 1 . . . . . . . . . . . . . . Ballistic Cannon 2 | . . . . . . . 2 . . . . . . . . . . Launcher 6 | . 2 1 1 1 1 . . . . . . . . . . . . Special Weapon . | . . . . . . . . . . . . . . . . . . Impact Weapon . | . . . . . . . . . . . . . . . . . . Slashing Weapon . | . . . . . . . . . . . . . . . . . . Piercing Weapon . | . . . . . . . . . . . . . . . . . . Special Melee Weapon 1 | . . . . . . . . 1 . . . . . . . . . Unidentified Prototypes 2 | . . . 1 . . . . . . . . . . 1 . . . Parts Lost 37 | . 1 1 1 . 4 1 3 . . . . . 3 . 4 5 14 Power 7 | . 1 . 1 . . 1 1 . . . . . . . 2 1 . Propulsion 11 | . . . . . 1 . 2 . . . . . 1 . . 1 6 Utility 14 | . . . . . 1 . . . . . . . 1 . 2 3 7 Weapon 5 | . . 1 . . 2 . . . . . . . 1 . . . 1 Highest Loss Streak 14 | . 1 1 1 . 3 1 2 . . . . . 3 . 4 5 14 To Critical Strikes . | . . . . . . . . . . . . . . . . . . Average Slot Usage (%) 91 | . 99 100 99 96 89 70 64 77 96 100 100 99 96 82 81 82 32 Engine 9 | . 13 14 11 8 . 5 6 10 13 13 13 11 11 11 9 4 . Leg 13 | . 28 28 33 24 18 . . . . . . . . . . . . Flight 12 | . . . . 2 5 30 25 25 26 26 26 29 27 23 21 19 5 Device 6 | . 6 . . 7 10 8 6 6 6 6 6 10 9 5 12 16 6 Storage 7 | . 14 14 11 9 6 . . . 3 6 6 4 5 5 5 4 1 Processor 12 | . 7 14 11 18 18 15 13 13 13 13 13 11 11 11 10 19 12 Hackware 3 | . . . . . . . . . 8 13 13 11 11 11 9 4 3 Protection 6 | . . . 11 9 8 7 7 13 10 6 6 5 5 11 10 8 . Energy Gun 3 | . 14 3 . . . . . 5 6 6 6 5 4 . 1 4 1 Energy Cannon 4 | . . 4 14 10 10 . . . . . . . . . . . . Ballistic Gun 2 | . 13 6 1 . . . . . . . . . . . . . . Launcher 3 | . . 13 5 4 2 . . . . . . . . . . . . Special Melee Weapon 1 | . . . . . . . . 2 6 6 6 5 3 . . . . Peak Build Rating 94 | 9 10 11 18 22 22 21 27 37 49 49 49 57 57 54 82 94 77 Average Rating 31 | 6 8 9 15 19 19 19 21 31 43 49 49 54 55 52 70 89 40 On Entrance 34 | . 9 8 11 17 22 19 19 26 35 49 49 49 57 52 52 71 74 Naked Turns . | . . . . . . . . . . . . . . . . . . Heaviest Build 34 | 13 19 23 34 32 30 12 17 21 18 14 14 23 20 19 23 21 7 Greatest Support 37 | 20 20 20 33 33 33 12 18 18 20 20 20 24 24 20 32 33 37 Greatest Overweight (x) 3 | 3 . 1 1 2 1 . . 1 . . . . . . . . 1 Average Overweight (x) . | . . . . . . . . . . . . . . . . . . Largest Inventory Capacity 10 | 8 10 10 10 10 10 5 5 5 5 5 5 5 5 5 5 5 5 Average Capacity 7 | 7 9 10 10 10 8 5 5 5 5 5 5 5 5 5 5 5 5 Most Carried 10 | 5 10 10 10 10 10 5 5 5 5 5 5 5 5 5 5 5 5 Average Carried 6 | 3 8 9 9 7 8 4 4 4 4 5 5 4 4 4 4 4 1 Final Capacity 10 | 8 10 10 10 10 5 5 5 5 5 5 5 5 5 5 5 5 5 Final Carried 10 | 5 10 10 10 10 5 5 5 3 5 5 5 4 5 5 5 5 . Class Distribution -------------------- 53% | Mutant 14% | Sprinter 9% | Hacker-Sprinter 8% | Hacker-Ninja 7% | Hacker-Scout 6% | Scout Dominant Class ---------------- Mutant | -10/Materials Mutant | -10/Mines Mutant | -9/Materials Mutant | -8/Materials Mutant | -8/Storage Sprinter | -7/Factory Sprinter | -6/Factory Sprinter | -6/Waste Sprinter | -6/Factory Hacker-Sprinter | -6/Lower Caves Hacker-Sprinter | -6/Lower Caves Hacker-Ninja | -5/Factory Hacker-Ninja | -5/Extension Hacker-Ninja | -5/Cetus Hacker-Scout | -4/Factory Scout | -3/Research Mutant | -2/Research Resources | -11 -10 -10 -9 -8 -8 -7 -6 -6 -6 -6 -6 -5 -5 -5 -4 -3 -2 ----------- Run | Yrd Mat Min Mat Mat Sto Fac Fac Was Fac Low Low Fac Ext Cet Fac Res Res Matter Collected 2119 | 314 82 163 806 108 146 105 95 86 100 13 . 66 . . 15 . 20 Remotely . | . . . . . . . . . . . . . . . . . . Salvage Created 1722 | 193 174 81 813 154 179 . 56 . 48 . . . . . . . 24 Parts 118 | 18 13 5 56 13 5 . 6 . 1 . . . . . . . 1 Haulers Intercepted 1 | . . . 1 . . . . . . . . . . . . . . Recyclers Shooed 3 | 1 . . 2 . . . . . . . . . . . . . . Parts Field Recycled . | . . . . . . . . . . . . . . . . . . Retrieved Matter . | . . . . . . . . . . . . . . . . . . Parts Self-Destructed 3 | . . . . . . . . . . . 3 . . . . . . Prevented . | . . . . . . . . . . . . . . . . . . Kills | -11 -10 -10 -9 -8 -8 -7 -6 -6 -6 -6 -6 -5 -5 -5 -4 -3 -2 ------- Run | Yrd Mat Min Mat Mat Sto Fac Fac Was Fac Low Low Fac Ext Cet Fac Res Res Combat Hostiles Destroyed 39 | . 3 4 23 2 6 . . . 1 . . . . . . . . Guns 3 | . 1 1 . . . . . . 1 . . . . . . . . Cannons 12 | . . . 6 2 4 . . . . . . . . . . . . AOE 24 | . 2 3 17 . 2 . . . . . . . . . . . . Classes Destroyed 12 | 2 3 . 6 . 1 . . . . . . . . . . . . Worker 6 | . 1 . 2 . . . 2 . . . . . . . . . 1 Builder 1 | . . . 1 . . . . . . . . . . . . . . Tunneler 7 | 5 . . 1 . . . 1 . . . . . . . . . . Hauler 1 | . . . 1 . . . . . . . . . . . . . . Recycler 5 | 1 1 . 3 . . . . . . . . . . . . . . Mechanic 1 | . . . 1 . . . . . . . . . . . . . . Operator 1 | . . . 1 . . . . . . . . . . . . . . Watcher 4 | . 1 . 1 2 . . . . . . . . . . . . . Swarmer 6 | . . . 6 . . . . . . . . . . . . . . Grunt 22 | . 3 4 12 . 2 . . . 1 . . . . . . . . Sentry 10 | . . . 5 2 3 . . . . . . . . . . . . Hunter 1 | . . . . . 1 . . . . . . . . . . . . Best Kill Streak 9 | 6 5 2 9 1 2 . 3 . 1 . . . . . . . 1 Combat Bots Only 5 | . 2 2 5 1 2 . . . 1 . . . . . . . . Max Kills in Single Turn 3 | 2 2 2 3 1 2 . 1 . 1 . . . . . . . 1 Gunslinging . | . . . . . . . . . . . . . . . . . . Exploded 2 | . 2 2 2 . 2 . . . . . . . . . . . . Melee . | . . . . . . . . . . . . . . . . . . Uniques/NPCs Destroyed . | . . . . . . . . . . . . . . . . . . Combat | -11 -10 -10 -9 -8 -8 -7 -6 -6 -6 -6 -6 -5 -5 -5 -4 -3 -2 -------- Run | Yrd Mat Min Mat Mat Sto Fac Fac Was Fac Low Low Fac Ext Cet Fac Res Res Hostile Shots Fired 472 | . 6 7 61 6 52 16 50 . 2 . . . 39 1 53 35 144 Missed 215 | . 2 2 24 1 14 10 27 . 1 . . . 23 . 26 15 70 Damage Taken 5413 | 38 141 70 521 118 631 124 361 . 14 . . . 372 25 403 560 2035 Core 2057 | . 21 16 91 14 210 46 84 . . . . . 47 25 . 41 1462 Absorbed by Shields 54 | . . . . . . . . . . . . . . . . . 54 Redirected to Shielding 52 | . . . . 16 36 . . . . . . . . . . . . Regen/Repaired (Parts) 5 | . . . . . . . . 5 . . . . . . . . . Core Remaining (%) 88 | 100 . 85 77 . 59 93 . . . . 90 . . 92 100 96 . Volleys Fired 129 | 8 10 8 50 9 23 . 10 . 4 . . 4 . . 3 . . Largest 2 | 2 2 2 2 2 2 . 1 . 1 . . 1 . . 1 . . Hottest 135 | 60 70 73 135 135 135 . 39 . 40 . . 40 . . 40 . . Shots Fired 217 | 16 20 15 91 17 36 . 10 . 4 . . 4 1 . 3 . . Gun 50 | 16 15 7 . . . . . . 4 . . 4 1 . 3 . . Cannon 104 | . . . 51 16 27 . 10 . . . . . . . . . . Launcher 63 | . 5 8 40 1 9 . . . . . . . . . . . . Special . | . . . . . . . . . . . . . . . . . . Kinetic 28 | 8 5 5 . . . . 10 . . . . . . . . . . Thermal 106 | . . . 51 16 27 . . . 4 . . 4 1 . 3 . . Explosive 63 | . 5 8 40 1 9 . . . . . . . . . . . . Electromagnetic 20 | 8 10 2 . . . . . . . . . . . . . . . Robot Hit Streak 8 | 7 3 3 8 3 8 . 4 . 1 . . 1 . . 1 . . Robot Miss Streak 5 | 1 2 5 4 3 4 . 2 . 1 . . 2 1 . 3 . . Penetration Max . | . . . . . . . . . . . . . . . . . . Secondary Targets . | . . . . . . . . . . . . . . . . . . Shots Hit Robots 117 | 10 7 7 42 9 21 . 8 . 6 1 . 5 . . 1 . . Core Hits 114 | 6 10 10 60 5 15 . 4 . 1 . . 1 . . 1 . 1 Critical Kills . | . . . . . . . . . . . . . . . . . . Critical Parts Destroyed . | . . . . . . . . . . . . . . . . . . Critical Strikes . | . . . . . . . . . . . . . . . . . . Melee Attacks 9 | . . . . . . . . . 5 1 . 3 . . . . . Impact . | . . . . . . . . . . . . . . . . . . Slashing . | . . . . . . . . . . . . . . . . . . Piercing . | . . . . . . . . . . . . . . . . . . Sneak Attacks 7 | . . . . . . . . . 3 1 . 3 . . . . . Combat Hostiles . | . . . . . . . . . . . . . . . . . . Follow-up Attacks . | . . . . . . . . . . . . . . . . . . Damage Inflicted 5100 | 166 349 427 2908 239 747 . 175 . 39 . . 26 . . 12 . 12 Guns 320 | 121 85 37 . . . . . . 39 . . 26 . . 12 . . Cannons 1351 | . . . 583 186 407 . 175 . . . . . . . . . . Explosions 3350 | 45 241 375 2314 40 335 . . . . . . . . . . . . Melee . | . . . . . . . . . . . . . . . . . . Ramming 79 | . 23 15 11 13 5 . . . . . . . . . . . 12 Kinetic 307 | 72 23 37 . . . . 175 . . . . . . . . . . Thermal 1298 | 45 . . 583 186 407 . . . 39 . . 26 . . 12 . . Explosive 3273 | . 209 375 2314 40 335 . . . . . . . . . . . . Electromagnetic 143 | 49 94 . . . . . . . . . . . . . . . . Impact . | . . . . . . . . . . . . . . . . . . Slashing . | . . . . . . . . . . . . . . . . . . Piercing . | . . . . . . . . . . . . . . . . . . Highest Corruption 5 | . . . . . . . 1 1 1 1 1 3 3 3 5 . . Average Corruption 1 | . . . . . . . 1 1 1 1 1 2 3 3 2 . . Corruption Purged . | . . . . . . . . . . . . . . . . . . Corruption Blocked 3 | . . . . . . . . . . . . . . . . 1 2 Effects 22 | . . . . . . . 2 3 3 5 1 . 4 1 3 . . Message Errors 3 | . . . . . . . 1 . . 1 1 . . . . . . Matter Fused 7 | . . . . . . . . 2 1 2 . . 2 . . . . Heat Flow Errors 5 | . . . . . . . . 1 2 2 . . . . . . . Energy Discharges 2 | . . . . . . . 1 . . . . . . . 1 . . Data Loss (minor) 2 | . . . . . . . . . . . . . . 1 1 . . Misfires 1 | . . . . . . . . . . . . . 1 . . . . Alerts 2 | . . . . . . . . . . . . . 1 . 1 . . Overload Shots . | . . . . . . . . . . . . . . . . . . Overflow Damage 49 | . . . 37 . . . 12 . . . . . . . . . . Projectiles 17 | . . . 5 . . . 12 . . . . . . . . . . Explosions 32 | . . . 32 . . . . . . . . . . . . . . Melee . | . . . . . . . . . . . . . . . . . . Knockbacks 1 | . . . . . . . 1 . . . . . . . . . . Impact . | . . . . . . . . . . . . . . . . . . Kinetic 1 | . . . . . . . 1 . . . . . . . . . . Secondary . | . . . . . . . . . . . . . . . . . . Self-Inflicted Damage 307 | 38 99 . 35 42 87 . . . . . . . . . . . 6 Shots 12 | 1 4 . 2 1 4 . . . . . . . . . . . . Rammed 2 | . . . . . 1 . . . . . . . . . . . 1 Targets Rammed 12 | . 4 3 2 1 1 . . . . . . . . . . . 1 Kicked 10 | . 4 3 2 1 . . . . . . . . . . . . . Crushed . | . . . . . . . . . . . . . . . . . . Highest Temperature 441 | 12 24 45 362 129 441 . 13 103 250 192 . 130 129 12 34 . . Average Temperature 60 | 12 12 21 117 55 124 . 4 20 26 101 . 31 39 6 7 . . Received Heat Transfer 504 | . 24 39 120 27 126 . 96 . . . . . 42 . 12 18 . Effects 7 | . . . 3 . 2 . . . 2 . . . . . . . . Shutdowns 1 | . . . 1 . . . . . . . . . . . . . . Energy Bleed 1 | . . . 1 . . . . . . . . . . . . . . Interference 2 | . . . . . . . . . 2 . . . . . . . . Matter Decay 2 | . . . 1 . 1 . . . . . . . . . . . . Damage (minor) 1 | . . . . . 1 . . . . . . . . . . . . Siege Activations . | . . . . . . . . . . . . . . . . . . Robots Corrupted . | . . . . . . . . . . . . . . . . . . Combat Hostiles . | . . . . . . . . . . . . . . . . . . Parts Fried . | . . . . . . . . . . . . . . . . . . Impact Corruptions . | . . . . . . . . . . . . . . . . . . Robots Melted . | . . . . . . . . . . . . . . . . . . Combat Hostiles . | . . . . . . . . . . . . . . . . . . Parts Melted 3 | . . . 1 2 . . . . . . . . . . . . . Heat Transferred 2085 | 50 . . 888 296 629 . . . 111 . . 74 . . 37 . . Parts Sabotaged . | . . . . . . . . . . . . . . . . . . Parts Stolen . | . . . . . . . . . . . . . . . . . . Parts Stripped . | . . . . . . . . . . . . . . . . . . Power Chain Reactions 2 | 1 1 . . . . . . . . . . . . . . . . Alert | -11 -10 -10 -9 -8 -8 -7 -6 -6 -6 -6 -6 -5 -5 -5 -4 -3 -2 ------- Run | Yrd Mat Min Mat Mat Sto Fac Fac Was Fac Low Low Fac Ext Cet Fac Res Res Peak Influence 665 | 30 112 109 665 444 491 199 258 145 657 . . 508 97 57 246 107 157 Initial 294 | . 19 33 . 280 187 164 97 90 101 . . 294 77 42 31 55 37 Average 221 | 10 71 61 448 326 299 189 179 123 419 . . 271 77 50 105 69 69 Maximum Alert Level 2 | . . . 2 2 2 . 1 . 2 . . 2 . . 1 . . Low Security (%) 58 | 100 100 100 9 . 29 100 65 100 15 . . 33 100 100 69 100 100 Level 1 22 | . . . 12 87 51 . 34 . 37 . . 60 . . 30 . . Level 2 19 | . . . 78 12 18 . . . 47 . . 5 . . . . . Level 3 . | . . . . . . . . . . . . . . . . . . Level 4 . | . . . . . . . . . . . . . . . . . . Level 5 . | . . . . . . . . . . . . . . . . . . High Security . | . . . . . . . . . . . . . . . . . . Max Security . | . . . . . . . . . . . . . . . . . . Squads Dispatched 19 | . 1 1 1 1 1 . 3 . 4 . . 3 . . 2 1 1 Investigation 4 | . . 1 1 . . . 1 . . . . . . . 1 . . Extermination 2 | . . . . . . . . . 1 . . . . . . 1 . Reinforcement 13 | . 1 . . 1 1 . 2 . 3 . . 3 . . 1 . 1 Assault . | . . . . . . . . . . . . . . . . . . Garrison . | . . . . . . . . . . . . . . . . . . Intercept . | . . . . . . . . . . . . . . . . . . Searches Triggered . | . . . . . . . . . . . . . . . . . . Construction Impeded . | . . . . . . . . . . . . . . . . . . Haulers Reinforced . | . . . . . . . . . . . . . . . . . . Active Scanning Responses . | . . . . . . . . . . . . . . . . . . Cargo Convoy Interrupts . | . . . . . . . . . . . . . . . . . . Stealth | -11 -10 -10 -9 -8 -8 -7 -6 -6 -6 -6 -6 -5 -5 -5 -4 -3 -2 --------- Run | Yrd Mat Min Mat Mat Sto Fac Fac Was Fac Low Low Fac Ext Cet Fac Res Res Distress Signals 9 | . 1 . 5 . . 1 . . . . . . 1 1 . . . Communications Jammed . | . . . . . . . . . . . . . . . . . . Distress Signals . | . . . . . . . . . . . . . . . . . . Times Spotted 190 | . 6 4 39 6 20 6 26 1 8 . . 2 11 5 24 9 23 Peak Tracking Total 13 | . 3 2 5 2 9 2 8 1 4 . . 1 11 5 11 8 13 Tactical Retreats 18 | . . . . . 1 1 7 . . . . . . . 5 . 4 Traps | -11 -10 -10 -9 -8 -8 -7 -6 -6 -6 -6 -6 -5 -5 -5 -4 -3 -2 ------- Run | Yrd Mat Min Mat Mat Sto Fac Fac Was Fac Low Low Fac Ext Cet Fac Res Res Traps Triggered 7 | . . . 1 . . 1 1 . . . . 2 . . 1 . 1 Indirectly . | . . . . . . . . . . . . . . . . . . Trap Hack Attempts . | . . . . . . . . . . . . . . . . . . Triggered . | . . . . . . . . . . . . . . . . . . Disarmed 4 | . . . . . . . . . . . . 4 . . . . . Reprogrammed 1 | . . . . . . . . . . . . . . . 1 . . Reused . | . . . . . . . . . . . . . . . . . . Traps Extracted . | . . . . . . . . . . . . . . . . . . Installed . | . . . . . . . . . . . . . . . . . . Triggered . | . . . . . . . . . . . . . . . . . . Machines | -11 -10 -10 -9 -8 -8 -7 -6 -6 -6 -6 -6 -5 -5 -5 -4 -3 -2 ---------- Run | Yrd Mat Min Mat Mat Sto Fac Fac Was Fac Low Low Fac Ext Cet Fac Res Res Machines Disabled 13 | . 2 . 7 1 2 . . . 1 . . . . . . . . Max in Single Turn 1 | . 1 . 1 1 1 . . . . . . . . . . . . Garrison Access 4 | . . . . . . . . . 2 . . 1 . . 1 . . Machines Repaired . | . . . . . . . . . . . . . . . . . . Machines Dismantled . | . . . . . . . . . . . . . . . . . . Machines Sabotaged . | . . . . . . . . . . . . . . . . . . Overloaded Fab Kills . | . . . . . . . . . . . . . . . . . . Hacking | -11 -10 -10 -9 -8 -8 -7 -6 -6 -6 -6 -6 -5 -5 -5 -4 -3 -2 --------- Run | Yrd Mat Min Mat Mat Sto Fac Fac Was Fac Low Low Fac Ext Cet Fac Res Res Machines Accessed 32 | . 1 2 3 4 2 2 3 . 3 . . 6 . . 5 1 . Terminals 24 | . 1 1 2 4 2 2 2 . 1 . . 5 . . 4 . . Fabricators . | . . . . . . . . . . . . . . . . . . Repair Stations 1 | . . . . . . . 1 . . . . . . . . . . Recycling Units . | . . . . . . . . . . . . . . . . . . Scanalyzers 2 | . . . 1 . . . . . . . . . . . . 1 . Garrison Access 4 | . . . . . . . . . 2 . . 1 . . 1 . . Total Hacks 88 | . 1 3 11 9 10 6 10 . 6 . . 17 . . 12 3 . Successful 47 | . 1 3 6 2 5 . 5 . 4 . . 13 . . 6 2 . Failed 41 | . . . 5 7 5 6 5 . 2 . . 4 . . 6 1 . Catastrophic 1 | . . . . . . . . . . . . . . . 1 . . Database Lockouts . | . . . . . . . . . . . . . . . . . . Manual 12 | . . . 8 . . . . . . . . 4 . . . . . Terminals 72 | . 1 2 8 9 10 6 7 . 2 . . 16 . . 11 . . Fabricators . | . . . . . . . . . . . . . . . . . . Repair Stations 3 | . . . . . . . 3 . . . . . . . . . . Recycling Units . | . . . . . . . . . . . . . . . . . . Scanalyzers 6 | . . . 3 . . . . . . . . . . . . 3 . Garrison Access 6 | . . . . . . . . . 4 . . 1 . . 1 . . Terminal Hacks 35 | . 1 3 2 2 5 . 4 . 2 . . 11 . . 5 . . Record 8 | . . . . 1 1 . 3 . 1 . . 1 . . 1 . . Prototype ID Bank 1 | . . . . . . . . . 1 . . . . . . . . Open Door 3 | . . 1 . . 1 . . . . . . 1 . . . . . Open DSF 2 | . . . . . . . . . . . . 1 . . 1 . . Emergency Access Points 1 | . . . . . 1 . . . . . . . . . . . . Unreport Threat 1 | . . . . . . . . . . . . 1 . . . . . Locate Traps 4 | . . . 1 . 1 . . . . . . 1 . . 1 . . Disarm Traps 1 | . . . . . . . . . . . . 1 . . . . . Reprogram Traps 1 | . . . . . . . . . . . . . . . 1 . . Patrol Status 1 | . . . . . . . . . . . . . . . 1 . . Reinforcement Status 1 | . . . . . . . . . . . . 1 . . . . . Recall Investigation 1 | . . 1 . . . . . . . . . . . . . . . Recall Extermination 1 | . . . . . . . . . . . . 1 . . . . . Recall Assault 1 | . . . . . . . . . . . . 1 . . . . . Zone Layout 8 | . 1 1 1 1 1 . 1 . . . . 2 . . . . . Fabricator Hacks . | . . . . . . . . . . . . . . . . . . Repair Station Hacks 1 | . . . . . . . 1 . . . . . . . . . . Scan Component 1 | . . . . . . . 1 . . . . . . . . . . Recycling Unit Hacks . | . . . . . . . . . . . . . . . . . . Scanalyzer 5 | . . . 3 . . . . . . . . . . . . 2 . Insert Component 2 | . . . 1 . . . . . . . . . . . . 1 . Analyze 3 | . . . 2 . . . . . . . . . . . . 1 . Garrison Access Hacks 4 | . . . . . . . . . 2 . . 1 . . 1 . . Seal Access 4 | . . . . . . . . . 2 . . 1 . . 1 . . Unauthorized Hacks 2 | . . . 1 . . . . . . . . 1 . . . . . Terminals 2 | . . . 1 . . . . . . . . 1 . . . . . Assimilate 1 | . . . 1 . . . . . . . . . . . . . . Botnet 1 | . . . . . . . . . . . . 1 . . . . . Fabricators . | . . . . . . . . . . . . . . . . . . Repair Stations . | . . . . . . . . . . . . . . . . . . Recycling Units . | . . . . . . . . . . . . . . . . . . Scanalyzers . | . . . . . . . . . . . . . . . . . . Garrison Access . | . . . . . . . . . . . . . . . . . . Data Cores Recovered 1 | . . . . . . . . . 1 . . . . . . . . Used 1 | . . . . . . . . . 1 . . . . . . . . Hacking Detections 20 | . . . 3 3 2 2 3 . 1 . . 3 . . 3 . . Full Trace Events 4 | . . . 1 1 . . 1 . . . . . . . 1 . . Feedback Events 1 | . . . . . . . 1 . . . . . . . . . . Corruption 1 | . . . . . . . 1 . . . . . . . . . . Feedback Blocked 1 | . . . . . . . . . . . . . . . 1 . . Robot Schematics Acquired . | . . . . . . . . . . . . . . . . . . Robots Built . | . . . . . . . . . . . . . . . . . . Authchips . | . . . . . . . . . . . . . . . . . . Time . | . . . . . . . . . . . . . . . . . . Total Robot Build Rating . | . . . . . . . . . . . . . . . . . . Part Schematics Acquired 1 | . . . 1 . . . . . . . . . . . . . . Parts Built . | . . . . . . . . . . . . . . . . . . Authchips . | . . . . . . . . . . . . . . . . . . Time . | . . . . . . . . . . . . . . . . . . Total Part Build Rating . | . . . . . . . . . . . . . . . . . . Parts Repaired . | . . . . . . . . . . . . . . . . . . Time . | . . . . . . . . . . . . . . . . . . Parts Recycled . | . . . . . . . . . . . . . . . . . . Recycled Matter . | . . . . . . . . . . . . . . . . . . Retrieved Matter . | . . . . . . . . . . . . . . . . . . Retrieved Components . | . . . . . . . . . . . . . . . . . . Parts Scanalyzed 2 | . . . 1 . . . . . . . . . . . . 1 . Part Schematics Acquired 1 | . . . 1 . . . . . . . . . . . . . . Parts Damaged 1 | . . . . . . . . . . . . . . . . 1 . Bothacking | -11 -10 -10 -9 -8 -8 -7 -6 -6 -6 -6 -6 -5 -5 -5 -4 -3 -2 ------------ Run | Yrd Mat Min Mat Mat Sto Fac Fac Was Fac Low Low Fac Ext Cet Fac Res Res Used RIF Installer . | . . . . . . . . . . . . . . . . . . Robots Hacked 5 | . . . . . . . . . 3 1 . 1 . . . . . Non-combat 5 | . . . . . . . . . 3 1 . 1 . . . . . Combat . | . . . . . . . . . . . . . . . . . . Robot Hacks Applied 7 | . . . . . . . . . 4 1 . 2 . . . . . parse_system 2 | . . . . . . . . . 1 1 . . . . . . . no_distress 4 | . . . . . . . . . 2 . . 2 . . . . . check_alert 1 | . . . . . . . . . 1 . . . . . . . . Relay Couplers Released . | . . . . . . . . . . . . . . . . . . Fabnet Peak Effective % . | . . . . . . . . . . . . . . . . . . Robots Rewired . | . . . . . . . . . . . . . . . . . . Allies Hacked . | . . . . . . . . . . . . . . . . . . Hacks Repelled . | . . . . . . . . . . . . . . . . . . Allies | -11 -10 -10 -9 -8 -8 -7 -6 -6 -6 -6 -6 -5 -5 -5 -4 -3 -2 -------- Run | Yrd Mat Min Mat Mat Sto Fac Fac Was Fac Low Low Fac Ext Cet Fac Res Res Total Allies 19 | . . . . . . . . 19 . . . . . . . . . Largest Group 19 | . . . . . . . . 19 17 12 10 10 . . . . . Highest-Rated Group 684 | . . . . . . . . 684 632 480 388 388 . . . . . Highest-Rated Ally 50 | . . . . . . . . 50 50 50 50 50 . . . . . Total Orders . | . . . . . . . . . . . . . . . . . . Ally Attacks 187 | . . . . . . . . 82 48 . 7 50 . . . . . Total Damage 6767 | . . . . . . . . 3423 1555 . 224 1565 . . . . . Kills 37 | . . . . . . . . 8 15 . 3 11 . . . . . Allies Corrupted 2 | . . . . . . . . . . 2 . . . . . . . Allies Melted . | . . . . . . . . . . . . . . . . . . Intel | -11 -10 -10 -9 -8 -8 -7 -6 -6 -6 -6 -6 -5 -5 -5 -4 -3 -2 ------- Run | Yrd Mat Min Mat Mat Sto Fac Fac Was Fac Low Low Fac Ext Cet Fac Res Res Robot Analysis Total . | . . . . . . . . . . . . . . . . . . Derelict Logs Recovered 3 | . . 2 . . . . . . . 1 . . . . . . . Drone Launches . | . . . . . . . . . . . . . . . . . . Drone Recoveries . | . . . . . . . . . . . . . . . . . . Exploration | -11 -10 -10 -9 -8 -8 -7 -6 -6 -6 -6 -6 -5 -5 -5 -4 -3 -2 ------------- Run | Yrd Mat Min Mat Mat Sto Fac Fac Was Fac Low Low Fac Ext Cet Fac Res Res Turns Passed 6450 | 122 545 859 1014 307 452 208 233 196 564 312 56 476 170 19 436 333 148 Spaces Moved 7341 | 64 405 601 640 203 331 479 526 174 812 328 50 585 450 54 957 429 253 Core 116 | 18 . . . . . . . . . . . . . . . . 98 Treads . | . . . . . . . . . . . . . . . . . . Legs 2024 | 46 405 601 640 186 146 . . . . . . . . . . . . Wheels . | . . . . . . . . . . . . . . . . . . Hover . | . . . . . . . . . . . . . . . . . . Flight 5201 | . . . . 17 185 479 526 174 812 328 50 585 450 54 957 429 155 Fastest Speed 24 | 50 120 120 120 120 29 29 26 27 27 27 27 24 24 27 27 28 32 Average Speed 57 | 117 120 135 127 127 87 29 27 43 27 27 27 24 24 27 27 28 45 Slowest Speed 207 | 200 120 190 190 207 190 29 29 109 28 27 27 24 27 27 30 35 100 Overloaded Moves . | . . . . . . . . . . . . . . . . . . Propulsion Burnouts . | . . . . . . . . . . . . . . . . . . Robots Hopped 42 | . . . . . 5 3 2 . 4 . . 2 6 . 18 . 2 Cave-ins Triggered . | . . . . . . . . . . . . . . . . . . Exploration Rate (%) 38 | 4 61 92 75 21 76 14 22 86 19 67 9 12 49 23 25 19 18 Regions Visited 17 Branch Regions 6 Pre-discovered Areas 1 | . . . . . . . . . . 1 . . . . . . . Known Exits Taken 14 | . 1 1 1 1 1 1 . . 1 1 1 1 1 1 1 1 . Unknown Exits Taken 1 | 1 . . . . . . . . . . . . . . . . . Scrap Searched 3 | . . 1 . . . . . . . 2 . . . . . . . Spaces Dug 3 | . 3 . . . . . . . . . . . . . . . . Terrain Destroyed 481 | 2 25 79 301 13 61 . . . . . . . . . . . . Melee . | . . . . . . . . . . . . . . . . . . Projectile 25 | . . . 15 5 5 . . . . . . . . . . . . AOE 456 | 2 25 79 286 8 56 . . . . . . . . . . . . Terrain Rammed . | . . . . . . . . . . . . . . . . . . Walls Destroyed . | . . . . . . . . . . . . . . . . . . Machines Disabled . | . . . . . . . . . . . . . . . . . . Actions | -11 -10 -10 -9 -8 -8 -7 -6 -6 -6 -6 -6 -5 -5 -5 -4 -3 -2 --------- Run | Yrd Mat Min Mat Mat Sto Fac Fac Was Fac Low Low Fac Ext Cet Fac Res Res Total 9339 | 94 444 632 749 234 453 545 605 296 1144 550 91 913 503 57 1107 638 284 Wait 1640 | . . 8 27 3 82 62 49 110 311 222 42 311 55 . 145 198 15 Move 7250 | 63 404 600 639 202 322 472 522 173 803 327 49 580 437 53 927 428 249 Hop 33 | . . . . . 3 3 2 . 4 . . 2 6 . 11 . 2 Pick Up 79 | 13 12 4 10 4 4 3 6 . 5 . . 4 1 1 7 3 2 Fast Attach 12 | . . 1 . . . . 2 . 2 . . . . . 3 4 . Attach 61 | 7 2 1 5 6 5 2 7 3 3 . . 3 2 1 5 2 7 Detach 11 | . 1 . . 2 1 1 2 2 . . . . 2 . . . . Swap 33 | 2 5 2 5 5 4 . 1 1 4 . . 3 . 1 . . . Drop 62 | 1 6 5 11 2 8 2 4 7 3 . . 3 . 1 6 3 . Fire 129 | 8 10 8 50 9 23 . 10 . 4 . . 4 . . 3 . . Melee 9 | . . . . . . . . . 5 1 . 3 . . . . . Ram 2 | . . . . . 1 . . . . . . . . . . . 1 Kick 10 | . 4 3 2 1 . . . . . . . . . . . . . Crush . | . . . . . . . . . . . . . . . . . . Escape Stasis 8 | . . . . . . . . . . . . . . . . . 8 Rewire . | . . . . . . . . . . . . . . . . . . Trap . | . . . . . . . . . . . . . . . . . . Miscellaneous . | . . . . . . . . . . . . . . . . . . Route ------- -11/Scrapyard -10/Materials (discovered 3 exits: *Mat x2 / *Min) -10/Mines -9/Materials (discovered 3 exits: *Mat x3) -8/Materials -8/Storage -7/Factory -6/Factory -6/Waste -6/Factory (discovered 2 exits: *Fac / *Low) -6/Lower Caves -6/Lower Caves -5/Factory -5/Extension (discovered 2 exits: *Fac / *Cet) -5/Cetus -4/Factory -3/Research -2/Research (discovered 1 exit: [*Qua]) History --------- Turn | Location | Event 21 | -11/Scrapyard | Discovered new exit (range 16) 123 | -11/Scrapyard | Entered Materials 306 | -10/Materials | Build established: Mutant 331 | -10/Materials | Discovered new exit (range 16) 371 | -10/Materials | Identified exit to Materials 445 | -10/Materials | Discovered new exit (range 16) 462 | -10/Materials | Identified exit to Mines 552 | -10/Materials | Discovered exit to Materials (range 10) 668 | -10/Materials | Entered Mines 675 | -10/Mines | Received a Rocket Launcher from a helpful Derelict 697 | -10/Mines | Learned 8 Materials zone layouts 833 | -10/Mines | Met a Derelict shopkeep closing up shop 872 | -10/Mines | Learned Materials stockpile data 1362 | -10/Mines | Discovered exit to Materials (range 10) 1527 | -10/Mines | Entered Materials 1527 | -9/Materials | Evolved 2 slots: Propulsion x1, Utility x1 1528 | -9/Materials | Identified exit to Materials 2541 | -9/Materials | Entered another Materials area 2541 | -8/Materials | Evolved 2 slots: Utility x2 2725 | -8/Materials | Discovered new exit (range 19) 2799 | -8/Materials | Identified exit to Storage 2848 | -8/Materials | Entered Storage 3194 | -8/Storage | Lost 3 parts (1u2w) 3299 | -8/Storage | Discovered new exit (range 5) 3300 | -8/Storage | Identified exit to Factory 3300 | -8/Storage | Entered Factory 3300 | -7/Factory | Evolved 2 slots: Propulsion x1, Utility x1 3358 | -7/Factory | Discovered new exit (range 7) 3359 | -7/Factory | Identified exit to Factory 3508 | -7/Factory | Entered another Factory area 3508 | -6/Factory | Evolved 2 slots: Power x1, Utility x1 3543 | -6/Factory | Build established: Sprinter 3741 | -6/Factory | Sucked down chute 3741 | -6/Factory | Entered Waste 3747 | -6/Waste | Warlord forces began an assault 3770 | -6/Waste | Spotted C-40 Crusher 3778 | -6/Waste | Allies destroyed C-40 Crusher 3796 | -6/Waste | Spotted C-40 Crusher 3802 | -6/Waste | Spotted C-40 Crusher 3803 | -6/Waste | Allies destroyed C-40 Crusher 3810 | -6/Waste | Allies destroyed C-40 Crusher 3851 | -6/Waste | Spotted C-40 Crusher 3859 | -6/Waste | Allies destroyed C-40 Crusher 3870 | -6/Waste | Spotted C-40 Crusher 3877 | -6/Waste | Allies destroyed C-40 Crusher 3902 | -6/Waste | Discovered new exit (range 12) 3905 | -6/Waste | Identified exit to Factory 3937 | -6/Waste | Entered Factory 3937 | -6/Factory | Accompanied by 17 allies 4011 | -6/Factory | Discovered new exit (range 12) 4029 | -6/Factory | Identified exit to Factory 4175 | -6/Factory | Discovered new exit (range 10) 4182 | -6/Factory | Identified exit to Lower Caves 4337 | -6/Factory | Lost 5 allies 4501 | -6/Factory | Entered Lower Caves 4501 | -6/Lower Caves | Accompanied by 12 allies 4580 | -6/Lower Caves | Build established: Hacker-Sprinter 4593 | -6/Lower Caves | Encountered a Warlord checkpoint 4761 | -6/Lower Caves | Discovered new exit (range 6) 4762 | -6/Lower Caves | Identified exit to Lower Caves 4813 | -6/Lower Caves | Entered another Lower Caves area 4813 | -6/Lower Caves | Accompanied by 10 allies 4823 | -6/Lower Caves | Discovered exit to Factory (range 13) 4869 | -6/Lower Caves | Entered Factory 4869 | -5/Factory | Accompanied by 10 allies 4869 | -5/Factory | Evolved 2 slots: Propulsion x1, Utility x1 5119 | -5/Factory | Lost 5 allies 5196 | -5/Factory | Build established: Hacker-Ninja 5343 | -5/Factory | Discovered new exit (range 9) 5344 | -5/Factory | Identified exit to Extension 5345 | -5/Factory | Entered Extension 5372 | -5/Extension | Spotted B-75 Beast 5475 | -5/Extension | Spotted B-75 Beast 5509 | -5/Extension | Discovered new exit (range 19) 5509 | -5/Extension | Discovered new exit (range 18) 5513 | -5/Extension | Lost 3 parts (1n1u1w) 5514 | -5/Extension | Identified exit to Cetus 5515 | -5/Extension | Identified exit to Factory 5515 | -5/Extension | Entered Cetus 5523 | -5/Cetus | Spotted Cetus Guard 5523 | -5/Cetus | Spotted Cetus Guard 5523 | -5/Cetus | Spotted Cetus Guard 5523 | -5/Cetus | Spotted Cetus Guard 5529 | -5/Cetus | Discovered exit to Factory (range 20) 5534 | -5/Cetus | Entered Factory 5534 | -4/Factory | Evolved 2 slots: Utility x2 5782 | -4/Factory | Build established: Hacker-Scout 5968 | -4/Factory | Discovered new exit (range 6) 5969 | -4/Factory | Identified exit to Research 5970 | -4/Factory | Entered Research 5970 | -3/Research | Evolved 2 slots: Utility x2 5996 | -3/Research | Lost 4 parts (2p2u) 6232 | -3/Research | Spotted B-86 Titan 6244 | -3/Research | Build established: Scout 6298 | -3/Research | Discovered new exit (range 20) 6303 | -3/Research | Identified exit to Research 6303 | -3/Research | Entered another Research area 6303 | -2/Research | Evolved 2 slots: Propulsion x1, Utility x1 6333 | -2/Research | Lost 5 parts (1p1n3u) 6338 | -2/Research | Discovered new exit (range 19) 6352 | -2/Research | Spotted B-90 Cyclops 6399 | -2/Research | Core integrity fell below 50% 6410 | -2/Research | Core integrity fell below 20% 6435 | -2/Research | Lost 14 parts (6n7u1w) 6451 | -2/Research | Destroyed by P-80 Master with Gamma Rifle Last Messages --------------- Graphene Brace destroyed. Slug penetrates Wall. Imp. Corruption Screen destroyed. K-01 Serf collects debris. Door malfunctions. U-05 Engineer repairs door. Lgt. Ion Engine severed. Penetrated by Slug. Imp. Signal Interpreter severed. P-80 Master resets K-01 Serf, system corruption cleaned. K-01 Serf collects debris. Slug penetrates K-01 Serf. R-10 Processor collects Lgt. Ion Engine. U-05 Engineer repairs door. Imp. Component Analysis Suite severed. Adv. Signal Interpreter severed. P-80 Master resets U-05 Engineer, system corruption cleaned. P-80 Master resets A-15 Conveyor, system corruption cleaned. System Shield severed. [Achievement: 10k Club] Map ----- +----------------------------------------------------+ | ?????????????????????????????????????????????????? | | ?????????????????????????????????????????????????? | | ?????????????????????????????????????????????????? | | ?????????????????????????????????????????????????? | | ?????????????????????????????????????????????????? | | ?????????????????????????????????????????????????? | | ?????????????????????????????????????????????????? | | ?????????????????????????????????????????????????? | | ?????????????????????????????????????????????????? | | ?????????????????????????????????????????????????? | | ?????????????????????????????????????????????????? | | ?????????????????????????????????????????????????? | | ???????????????????????????##########????????????? | | ???????????????????????????# #########????? | | ???????????????????????????# ]]]# """ ?????? | | ???????????????????????????# ]]]# """ ?????? | | ???????????????????????????# ! ]] # """ ??????? | | ???????????????????????????# # ??????? | | ?????????????????#?????????# # ???????? | | ?????????????????# ????????# ! # ???????? | | ?????????????????# ???????? #? ????????? | | ?????????????????# ????????? ??? ????????? | | ?????????????????# p##########/######/########## | | ?????????????????# p kw k | | ?????????????????# c p | | ?????????????????# @ cp | | ?????????????????# u | | ?????????????????########+######+################# | | ?????????????????????????????????????????????????? | | ?????????????????????????????????????????????????# | | ?????????????????????????????????????????????????# | | ?????????????????????????????????????????????????# | | ?????????????????????????????????????????????????# | | ?????????????????????????????????????????????????# | | ?????????????????????????????????????????????????# | | ?????????????????????????????????????????????????# | | ?????????????????????????????????????????????????# | | ?????????????????????????????????????????????????# | | ?????????????????????????????????????????????????? | | ?????????????????????????????????????????????????? | | ???????????????????????????????????????????# | | ?????????????????????????????????????????????????? | | ?????????????????????????????????????????????????? | | ?????????????????????????????????????????????????? | | ?????????????????????????????????????????????????? | | ?????????????????????????????????????????????????? | | ?????????????????????????????????????????????????? | | ?????????????????????????????????????????????????? | | ?????????????????????????????????????????????????? | | ?????????????????????????????????????????????????? | +----------------------------------------------------+ Best States ------------- Heat Dissipation 49 Energy Generation 17 Energy Capacity 325 Matter Stores 300 Matter Capacity 300 Sight Range 20 Robot Scan Range 16 Terrain Scan Range 16 Terrain Scan Density 10 ECM Strength 2 Cloak Strength 2 Corruption Block 15 Armor Coverage 375 Propulsion Shielding 33 Evasion (%) 65 Offensive Hacking 12 Defensive Hacking 10 Item Schematics ----------------- Flight Unit | -9/Materials | Scanalyzed Robot Schematics ------------------ None Fabricated ------------ Nothing Alien Tech Used ----------------- None Achievements -------------- 10k Club Cya! Dynamic Key I Spy Knowing Is Half The Battle Novice Programmer One Hack Too Far Safety First The More The Merrier True Hacker root@ Challenges ------------ None Game ------ Seed PoweredDefenseAutocannon Manual? 0 Play Time 02:17:56 Cumulative 9.0 hours Start 2024.11.12 @ 04:56:43 End 2024.11.12 @ 07:14:43 Sessions 1 Manual Loads 0 Difficulty Rogue Special Mode None Game No. 7 Rogue 7 Adventurer 0 Explorer 0 Win Type - Total 0 Types 0/0/0/0/0/0/0/0/0 Lore% 3 Gallery% 16 Achievement% 15 Wizard Run 0 Options --------- Layout 1 ASCII 0 Keyboard 0 Movement Mouse Keybinds 0 Fullscreen 2 Font 32/SmallcapsGlow Map View 77x35 Zoom Use 0% Tactical HUD 0 Map Filters NONE Filters NONE Steam 1 RUN: 57033fec-a929-4888-be4b-5a3be379c430